fUSD/lending_fUSD_20260315
["ID","MTS","AMOUNT","RATE_DAILY","PERIOD"]
[408428637,1773599499299,-425.496291,0.00045068,120]
[408428638,1773599499308,-151.0,0.00045068,120]
[408428639,1773599499317,-228.438576,0.00045068,120]
[408428640,1773599499327,-198.323566,0.00045068,120]
[408428641,1773599499336,-425.496291,0.00045068,120]
[408428642,1773599499346,-151.0,0.00045068,120]
[408428643,1773599499356,-228.438576,0.00045068,120]
[408428644,1773599499366,-198.323566,0.00045068,120]
[408428645,1773599499376,-425.496291,0.00045068,120]
[408428646,1773599499385,-228.438576,0.00045068,120]
[408428647,1773599499395,-151.0,0.00045068,120]
[408428648,1773599499404,-198.323566,0.00045068,120]
[408428649,1773599499414,-425.496291,0.00045068,120]
[408428650,1773599499423,-242.037051,0.00045068,120]
[408428651,1773599499433,-198.323566,0.00045068,120]
[408428652,1773599499442,-425.496291,0.00045068,120]
[408428653,1773599499451,-228.438576,0.00045068,120]
[408428654,1773599499460,-198.323566,0.00045068,120]
[408428655,1773599499470,-151.56,0.00045085,120]
[408428656,1773599499479,-162.47299902,0.000451,120]
[408428657,1773599499489,-156.68912876,0.00045144,7]
[408428658,1773599499498,-1000.0,0.00045158,120]
[408428659,1773599499508,-101968.8316,0.00045158,30]
[408428660,1773599499518,-358.13439987,0.00045169,14]
[408428661,1773599499528,-1257.91,0.00045181,120]
[408428662,1773599499537,-151.56,0.00045185,120]
[408428663,1773599499547,-364.0609,0.000452,2]
[408428664,1773599499560,-500.0,0.00045205,60]
[408428665,1773599499570,-152.96354872,0.00045205,120]
[408428666,1773599499579,-151.5,0.00045227,2]
[408428667,1773599499589,-151.5,0.00045232,2]
[408428668,1773599499598,-151.56,0.00045285,120]
[408428669,1773599499608,-500.0,0.00045315,30]
[408428670,1773599499618,-500.0,0.00045315,30]
[408428671,1773599499629,-59542.4407588,0.0004535,2]
[408428672,1773599499638,-151.56,0.00045385,120]
[408428673,1773599499648,-156.68912876,0.00045418,7]
[408428674,1773599499657,-1000.0,0.00045432,120]
[408428675,1773599499667,-151.5,0.0004547,2]
[408428676,1773599499676,-1600.0,0.00045479,60]
[408428677,1773599499686,-151.56,0.00045485,120]
[408428678,1773599499695,-401.7548,0.000455,2]
[408428679,1773599499705,-7408.0,0.000455,120]
[408428680,1773599499715,-357.5,0.000455,30]
[408428681,1773599499724,-1310.59,0.000455,30]
[408428682,1773599499734,-151.5,0.00045513,2]
[408428683,1773599499743,-151.56,0.00045585,120]
[408428684,1773599499752,-500.0,0.00045589,30]
[408428685,1773599499762,-500.0,0.00045589,30]
[408428686,1773599499771,-188.04720103,0.000456,120]
[408428687,1773599499780,-402.69,0.000456,14]
[408428688,1773599499790,-2000.0,0.00045605,120]
[408428689,1773599499799,-172.35,0.00045616,120]
[408428690,1773599499808,-151.56,0.00045685,120]
[408428691,1773599499818,-156.68912876,0.00045692,7]
[408428692,1773599499827,-1000.0,0.00045706,120]
[408428693,1773599499836,-1300.0,0.00045753,60]
[408428694,1773599499846,-151.56,0.00045785,120]
[408428695,1773599499855,-151.5,0.00045791,2]
[408428696,1773599499864,-443.3513,0.000458,2]
[408428697,1773599499874,-500.0,0.00045863,30]
[408428698,1773599499883,-500.0,0.00045863,30]
[408428699,1773599499893,-151.56,0.00045885,120]
[408428700,1773599499902,-1814.0,0.000459,120]
[408428701,1773599499912,-170.7,0.000459,30]
[408428702,1773599499926,-194.840118,0.000459,120]
[408428703,1773599499935,-156.68912876,0.00045966,7]
[408428704,1773599499944,-1000.0,0.0004598,120]
[408428705,1773599499954,-151.56,0.00045985,120]
[408428706,1773599499964,-433.60278835,0.00045999,120]
[408428707,1773599499974,-307.09265433,0.00046,2]
[408428708,1773599499985,-250.0,0.00046,120]
[408428709,1773599499996,-359.91900371,0.00046,90]
[408428710,1773599500007,-153.0,0.00046,79]
[408428711,1773599500017,-479.45770648,0.00046,120]
[408428712,1773599500026,-212.78889333,0.00046,120]
[408428713,1773599500035,-839.81163765,0.00046,120]
[408428714,1773599500044,-671.94206352,0.00046,120]
[408428715,1773599500053,-151.56,0.00046085,120]
[408428716,1773599500063,-489.2547,0.000461,2]
[408428717,1773599500072,-179.82,0.000461,30]
[408428718,1773599500082,-788.87378434,0.000461,120]
[408428719,1773599500094,-500.0,0.00046137,30]
[408428720,1773599500113,-819.63,0.00046137,30]
[408428721,1773599500129,-151.56,0.00046185,120]
[408428722,1773599500146,-156.68912876,0.0004624,7]
[408428723,1773599500164,-1000.0,0.00046254,120]
[408428724,1773599500182,-151.56,0.00046285,120]
[408428725,1773599500197,-240.84276138,0.00046295,3]
[408428726,1773599500214,-500.0,0.00046301,60]
[408428727,1773599500232,-1078.0,0.0004635,60]
[408428728,1773599500250,-151.56,0.00046385,120]
[408428729,1773599500269,-230.49652556,0.00046388,30]
[408428730,1773599500285,-282.20458417,0.00046388,30]
[408428731,1773599500301,-539.9108,0.000464,2]
[408428732,1773599500320,-500.0,0.00046411,30]
[408428733,1773599500335,-2078.74,0.00046434,120]
[408428734,1773599500348,-2721997.9592,0.00046478,30]
[408428735,1773599500376,-151.56,0.00046485,120]
[408428736,1773599500392,-13285.7143421,0.00046488,2]
[408428737,1773599500413,-156.68912876,0.00046514,7]
[408428738,1773599500434,-1000.0,0.00046528,120]
[408428739,1773599500452,-327.91313465,0.0004655,100]
[408428740,1773599500468,-151.34304632,0.00046575,120]
[408428741,1773599500484,-2501.93,0.00046575,2]
[408428742,1773599500500,-2501.93,0.00046575,2]
[408428743,1773599500515,-2501.93,0.00046575,2]
[408428744,1773599500531,-2501.93,0.00046575,2]
[408428745,1773599500547,-2501.93,0.00046575,2]
[408428746,1773599500562,-2501.93,0.00046575,2]
[408428747,1773599500577,-2501.93,0.00046575,2]
[408428748,1773599500593,-2501.93,0.00046575,2]
[408428749,1773599500607,-2501.93,0.00046575,2]
[408428750,1773599500622,-2501.93,0.00046575,2]
[408428751,1773599500638,-2501.93,0.00046575,2]
[408428752,1773599500654,-2501.93,0.00046575,2]
[408428753,1773599500669,-2501.93,0.00046575,2]
[408428754,1773599500685,-2501.93,0.00046575,2]
[408428755,1773599500699,-2501.93,0.00046575,2]
[408428756,1773599500714,-2501.93,0.00046575,2]
[408428757,1773599500728,-2501.93,0.00046575,2]
[408428758,1773599500743,-2501.93,0.00046575,2]
[408428759,1773599500756,-2501.93,0.00046575,2]
[408428760,1773599500772,-2502.05,0.00046575,2]
[408428761,1773599500786,-416.98,0.00046575,2]
[408428762,1773599500801,-416.98,0.00046575,2]
[408428763,1773599500815,-416.98,0.00046575,2]
[408428764,1773599500828,-416.98,0.00046575,2]
[408428765,1773599500843,-416.98,0.00046575,2]
[408428766,1773599500856,-416.98,0.00046575,2]
[408428767,1773599500870,-416.98,0.00046575,2]
[408428768,1773599500882,-416.98,0.00046575,2]
[408428769,1773599500897,-416.98,0.00046575,2]
[408428770,1773599500911,-416.98,0.00046575,2]
[408428771,1773599500928,-416.98,0.00046575,2]
[408428772,1773599500943,-416.98,0.00046575,2]
[408428773,1773599500958,-416.98,0.00046575,2]
[408428774,1773599500973,-416.98,0.00046575,2]
[408428775,1773599500987,-416.98,0.00046575,2]
[408428776,1773599501002,-416.98,0.00046575,2]
[408428777,1773599501017,-416.98,0.00046575,2]
[408428778,1773599501033,-416.98,0.00046575,2]
[408428779,1773599501047,-416.98,0.00046575,2]
[408428780,1773599501060,-416.98,0.00046575,2]
[408428781,1773599501074,-416.98,0.00046575,2]
[408428782,1773599501088,-416.98,0.00046575,2]
[408428783,1773599501102,-416.98,0.00046575,2]
[408428784,1773599501116,-417.18,0.00046575,2]
[408428785,1773599501129,-1600.0,0.00046575,60]
[408428786,1773599501143,-2671.0,0.00046575,120]
[408428787,1773599501158,-2671.0,0.00046575,120]
[408428788,1773599501172,-2671.0,0.00046575,120]
[408428789,1773599501187,-2671.0,0.00046575,120]
[408428790,1773599501201,-2671.0,0.00046575,120]
[408428791,1773599501215,-2671.0,0.00046575,120]
[408428792,1773599501235,-2671.0,0.00046575,120]
[408428793,1773599501252,-2671.0,0.00046575,120]
[408428794,1773599501269,-2671.0,0.00046575,120]
[408428795,1773599501286,-2671.0,0.00046575,120]
[408428796,1773599501302,-2671.0,0.00046575,120]
[408428797,1773599501316,-2671.0,0.00046575,120]
[408428798,1773599501332,-2671.0,0.00046575,120]
[408428799,1773599501346,-2671.0,0.00046575,120]
[408428800,1773599501362,-2671.0,0.00046575,120]
[408428801,1773599501377,-2671.0,0.00046575,120]
[408428802,1773599501392,-2671.0,0.00046575,120]
[408428803,1773599501406,-2671.0,0.00046575,120]
[408428804,1773599501420,-2671.0,0.00046575,120]
[408428805,1773599501434,-2671.0,0.00046575,120]
[408428806,1773599501449,-2671.0,0.00046575,120]
[408428807,1773599501464,-2671.0,0.00046575,120]
[408428808,1773599501478,-2671.0,0.00046575,120]
[408428809,1773599501491,-2671.87102715,0.00046575,120]
[408428810,1773599501505,-151.0,0.00046575,30]
[408428811,1773599501519,-151.0,0.00046575,30]
[408428812,1773599501534,-151.0,0.00046575,30]
[408428813,1773599501548,-151.0,0.00046575,30]
[408428814,1773599501563,-151.0,0.00046575,30]
[408428815,1773599501575,-151.0,0.00046575,30]
[408428816,1773599501590,-151.0,0.00046575,30]
[408428817,1773599501604,-151.0,0.00046575,30]
[408428818,1773599501618,-151.0,0.00046575,30]
[408428819,1773599501632,-151.0,0.00046575,30]
[408428820,1773599501646,-151.0,0.00046575,30]
[408428821,1773599501866,-151.0,0.00046575,30]
[408428822,1773599501877,-151.0,0.00046575,30]
[408428823,1773599501886,-151.0,0.00046575,30]
[408428824,1773599501896,-151.0,0.00046575,30]
[408428825,1773599501906,-151.0,0.00046575,30]
[408428826,1773599501916,-151.0,0.00046575,30]
[408428827,1773599501929,-151.0,0.00046575,30]
[408428828,1773599501939,-151.0,0.00046575,30]
[408428829,1773599501950,-173.63750418,0.00046575,30]
[408428830,1773599501960,-300.0,0.00046575,120]
[408428831,1773599501970,-300.0,0.00046575,120]
[408428832,1773599501979,-345.3250866,0.00046575,120]
[408428833,1773599501988,-151.0,0.00046575,120]
[408428834,1773599502001,-151.0,0.00046575,120]
[408428835,1773599502010,-151.0,0.00046575,120]
[408428836,1773599502019,-151.0,0.00046575,120]
[408428837,1773599502031,-247.433435,0.00046575,120]
[408428838,1773599502041,-306.93,0.00046575,120]
[408428839,1773599502050,-152.35274651,0.00046575,120]
[408428840,1773599502060,-207.92934451,0.0004658,120]
[408428841,1773599502069,-207.92,0.0004658,120]
[408428842,1773599502079,-161.7228235,0.0004658,120]
[408428843,1773599502088,-161.7228235,0.0004658,120]
[408428844,1773599502098,-161.7228235,0.0004658,120]
[408428845,1773599502108,-161.7228235,0.0004658,120]
[408428846,1773599502118,-161.7228235,0.0004658,120]
[408428847,1773599502128,-161.72,0.0004658,120]
[408428848,1773599502138,-165.64945043,0.0004658,120]
[408428849,1773599502148,-165.64945043,0.0004658,120]
[408428850,1773599502158,-165.64945043,0.0004658,120]
[408428851,1773599502167,-165.64945043,0.0004658,120]
[408428852,1773599502176,-165.64945043,0.0004658,120]
[408428853,1773599502185,-165.64,0.0004658,120]
[408428854,1773599502194,-154.60615374,0.0004658,120]
[408428855,1773599502204,-154.60615374,0.0004658,120]
[408428856,1773599502214,-154.60615374,0.0004658,120]
[408428857,1773599502223,-154.60615374,0.0004658,120]
[408428858,1773599502233,-154.60615374,0.0004658,120]
[408428859,1773599502242,-154.60615374,0.0004658,120]
[408428860,1773599502251,-154.60615374,0.0004658,120]
[408428861,1773599502261,-154.60615374,0.0004658,120]
[408428862,1773599502270,-154.60615374,0.0004658,120]
[408428863,1773599502280,-154.60615374,0.0004658,120]
[408428864,1773599502290,-154.60615374,0.0004658,120]
[408428865,1773599502300,-154.60615374,0.0004658,120]
[408428866,1773599502309,-154.60615374,0.0004658,120]
[408428867,1773599502319,-154.60615374,0.0004658,120]
[408428868,1773599502328,-154.6,0.0004658,120]
[408428869,1773599502338,-157.1689095,0.0004658,120]
[408428870,1773599502348,-157.1689095,0.0004658,120]
[408428871,1773599502357,-157.1689095,0.0004658,120]
[408428872,1773599502367,-157.1689095,0.0004658,120]
[408428873,1773599502378,-157.1689095,0.0004658,120]
[408428874,1773599502388,-157.1689095,0.0004658,120]
[408428875,1773599502398,-157.1689095,0.0004658,120]
[408428876,1773599502409,-157.1689095,0.0004658,120]
[408428877,1773599502419,-157.1689095,0.0004658,120]
[408428878,1773599502430,-157.16,0.0004658,120]
[408428879,1773599502441,-183.36372775,0.0004658,120]
[408428880,1773599502452,-183.36372775,0.0004658,120]
[408428881,1773599502461,-183.36372775,0.0004658,120]
[408428882,1773599502471,-183.36372775,0.0004658,120]
[408428883,1773599502481,-183.36372775,0.0004658,120]
[408428884,1773599502490,-183.36372775,0.0004658,120]
[408428885,1773599502499,-183.36372775,0.0004658,120]
[408428886,1773599502509,-183.36372775,0.0004658,120]
[408428887,1773599502520,-183.36372775,0.0004658,120]
[408428888,1773599502529,-183.36372775,0.0004658,120]
[408428889,1773599502538,-183.36372775,0.0004658,120]
[408428890,1773599502548,-183.36372775,0.0004658,120]
[408428891,1773599502557,-183.36372775,0.0004658,120]
[408428892,1773599502566,-183.36372775,0.0004658,120]
[408428893,1773599502575,-183.36372775,0.0004658,120]
[408428894,1773599502584,-183.36372775,0.0004658,120]
[408428895,1773599502593,-183.36372775,0.0004658,120]
[408428896,1773599502603,-183.36372775,0.0004658,120]
[408428897,1773599502612,-183.36372775,0.0004658,120]
[408428898,1773599502621,-183.36,0.0004658,120]
[408428899,1773599502630,-151.56,0.00046585,120]
[408428900,1773599502639,-74512.37,0.00046585,7]
[408428901,1773599502649,-11411.78,0.00046585,7]
[408428902,1773599502658,-10509.24,0.00046585,7]
[408428903,1773599502669,-27534.14,0.00046585,7]
[408428904,1773599502679,-174.735617,0.00046598,7]
[408428905,1773599502690,-1489.870102,0.00046598,7]
[408428906,1773599502699,-1000.0,0.00046598,2]
[408428907,1773599502709,-332.99,0.00046598,2]
[408428908,1773599502718,-341.63938748,0.00046682,30]
[408428909,1773599502728,-500.0,0.00046685,30]
[408428910,1773599502737,-151.56,0.00046685,120]
[408428911,1773599502748,-595.8116,0.000467,2]
[408428912,1773599502757,-3633.23636163,0.0004671,2]
[408428913,1773599502766,-327.6,0.0004676,30]
[408428914,1773599502775,-414.06727839,0.0004677,120]
[408428915,1773599502785,-151.56,0.00046785,120]
[408428916,1773599502795,-156.68912876,0.00046788,7]
[408428917,1773599502806,-4616.95476319,0.000468,30]
[408428918,1773599502815,-257.4,0.000468,120]
[408428919,1773599502824,-1000.0,0.00046802,120]
[408428920,1773599502833,-1300.0,0.00046849,60]
[408428921,1773599502844,-151.75866914,0.00046885,120]
[408428922,1773599502854,-1068785.8917759,0.000469,30]
[408428923,1773599502871,-3434.05938826,0.000469,30]
[408428924,1773599502882,-853.83390101,0.000469,30]
[408428925,1773599502891,-478.07,0.00046948,30]
[408428926,1773599502901,-500.0,0.00046959,30]
[408428927,1773599502910,-59985.09355933,0.00046988,120]
[408428928,1773599502923,-330.3187305,0.00046998,120]
[408428929,1773599502932,-657.5003,0.00047,2]
[408428930,1773599502942,-2000000.0,0.00047,10]
[408428931,1773599502951,-2000000.0,0.00047,15]
[408428932,1773599502962,-155.3198408,0.00047,120]
[408428933,1773599502972,-609.17888913,0.00047,30]
[408428934,1773599502982,-447.41,0.00047,30]
[408428935,1773599502992,-150.0,0.00047,82]
[408428936,1773599503002,-1000.0,0.00047,88]
[408428937,1773599503012,-300.0,0.00047,120]
[408428938,1773599503022,-2000.0,0.00047,88]
[408428939,1773599503032,-2000.0,0.00047,88]
[408428940,1773599503041,-2000.0,0.00047,88]
[408428941,1773599503050,-2000.0,0.00047,88]
[408428942,1773599503060,-2000.0,0.00047,88]
[408428943,1773599503069,-2000.0,0.00047,88]
[408428944,1773599503079,-2000.0,0.00047,88]
[408428945,1773599503088,-2000.0,0.00047,88]
[408428946,1773599503098,-2000.0,0.00047,88]
[408428947,1773599503107,-2000.0,0.00047,88]
[408428948,1773599503116,-2000.0,0.00047,88]
[408428949,1773599503125,-2000.0,0.00047,88]
[408428950,1773599503135,-1090.3,0.00047014,120]
[408428951,1773599503145,-156.68912876,0.00047062,7]
[408428952,1773599503154,-1000.0,0.00047076,120]
[408428953,1773599503163,-174.0,0.000471,120]
[408428954,1773599503173,-296.09,0.0004716,30]
[408428955,1773599503182,-151.5,0.0004718,2]
[408428956,1773599503191,-500.0,0.00047233,30]
[408428957,1773599503200,-611.76,0.00047245,120]
[408428958,1773599503209,-3053.96,0.0004725,30]
[408428959,1773599503218,-725.5761,0.000473,2]
[408428960,1773599503227,-14127.3308,0.000473,120]
[408428961,1773599503237,-156.68912876,0.00047336,7]
[408428962,1773599503246,-1000.0,0.0004735,120]
[408428963,1773599503255,-11149.6,0.0004736,117]
[408428964,1773599503264,-500.0,0.00047397,60]
[408428965,1773599503273,-438.40260574,0.000474,30]
[408428966,1773599503282,-190.2934623,0.00047424,120]
[408428967,1773599503291,-151.5,0.00047478,2]
[408428968,1773599503300,-1465.32896848,0.00047496,120]
[408428969,1773599503309,-372.46948006,0.000475,8]
[408428970,1773599503319,-500.0,0.00047507,30]
[408428971,1773599503328,-50000.0,0.00047597,43]
[408428972,1773599503337,-50000.0,0.00047597,47]
[408428973,1773599503347,-50000.0,0.00047597,48]
[408428974,1773599503355,-50000.0,0.00047597,50]
[408428975,1773599503365,-312.29,0.00047598,2]
[408428976,1773599503375,-10083.22589536,0.00047598,120]
[408428977,1773599503384,-17590.18828337,0.00047598,60]
[408428978,1773599503394,-243.0,0.00047598,120]
[408428979,1773599503405,-161563.16,0.00047598,120]
[408428980,1773599503414,-306.00400049,0.00047598,120]
[408428981,1773599503424,-63156.0,0.00047598,120]
[408428982,1773599503433,-1513.32,0.00047598,120]
[408428983,1773599503444,-399.63954057,0.00047598,2]
[408428984,1773599503454,-1210.0,0.00047598,2]
[408428985,1773599503463,-718.5008163,0.00047598,2]
[408428986,1773599503473,-355.99873099,0.00047598,2]
[408428987,1773599503482,-988.1139888,0.00047598,2]
[408428988,1773599503491,-1553.89345439,0.00047598,2]
[408428989,1773599503501,-1052.35626803,0.00047598,2]
[408428990,1773599503510,-501.52417238,0.00047598,2]
[408428991,1773599503519,-434.70033827,0.00047598,2]
[408428992,1773599503528,-154.63339395,0.00047598,2]
[408428993,1773599503537,-1714.28956376,0.00047598,2]
[408428994,1773599503547,-254.61669588,0.00047598,2]
[408428995,1773599503557,-500.0,0.00047598,2]
[408428996,1773599503566,-1289.06742455,0.00047598,2]
[408428997,1773599503575,-248.67007174,0.00047598,2]
[408428998,1773599503584,-1064.47181451,0.00047598,2]
[408428999,1773599503594,-301.96369123,0.00047598,2]
[408429000,1773599503603,-557.25552274,0.00047598,2]
[408429001,1773599503612,-600.24621381,0.00047598,2]
[408429002,1773599503622,-1340.40264417,0.00047598,2]
[408429003,1773599503631,-763.92539556,0.00047598,2]
[408429004,1773599503641,-188.07867592,0.00047598,2]
[408429005,1773599503650,-643.0,0.00047598,2]
[408429006,1773599503660,-991.78700488,0.00047598,2]
[408429007,1773599503677,-585.56194714,0.00047598,2]
[408429008,1773599503686,-179.19599119,0.00047598,2]
[408429009,1773599503695,-158.78299221,0.00047598,2]
[408429010,1773599503704,-508.05167248,0.00047598,2]
[408429011,1773599503713,-550.0,0.00047598,2]
[408429012,1773599503723,-233.80862131,0.00047598,2]
[408429013,1773599503732,-177.44162002,0.00047598,2]
[408429014,1773599503742,-499.9266616,0.00047598,3]
[408429015,1773599503752,-383.31120404,0.00047598,2]
[408429016,1773599503762,-1305.84052437,0.00047598,2]
[408429017,1773599503771,-1055.24592807,0.00047598,2]
[408429018,1773599503780,-675.95746962,0.00047598,2]
[408429019,1773599503789,-639.9998169,0.00047598,2]
[408429020,1773599503798,-219.40605606,0.00047598,2]
[408429021,1773599503808,-1089.79865783,0.00047598,2]
[408429022,1773599503817,-349.50405666,0.00047598,2]
[408429023,1773599503827,-1100.0,0.00047598,2]
[408429024,1773599503838,-931.91217331,0.00047598,2]
[408429025,1773599503847,-492.02037608,0.00047598,2]
[408429026,1773599503856,-618.35648368,0.00047598,2]
[408429027,1773599503866,-1621.73275423,0.00047598,2]
[408429028,1773599503875,-560.20049164,0.00047598,2]
[408429029,1773599503884,-1033.72018721,0.00047598,2]
[408429030,1773599503894,-372.72708275,0.00047598,2]
[408429031,1773599503904,-1876.71762637,0.00047598,2]
[408429032,1773599503914,-1142.57881134,0.00047598,2]
[408429033,1773599503929,-279.21471123,0.00047598,2]
[408429034,1773599503938,-411.35414238,0.00047598,2]
[408429035,1773599503947,-207.30421389,0.00047598,2]
[408429036,1773599503957,-882.30344748,0.00047598,2]
[408429037,1773599503967,-289.00975947,0.00047598,2]
[408429038,1773599503977,-1145.44944148,0.00047598,2]
[408429039,1773599503987,-2220.49172025,0.00047598,2]
[408429040,1773599503998,-895.38861829,0.00047598,2]
[408429041,1773599504007,-470.71322585,0.00047598,2]
[408429042,1773599504016,-150.0,0.00047598,2]
[408429043,1773599504026,-361.90564446,0.00047598,2]
[408429044,1773599504035,-203.87442382,0.00047598,2]
[408429045,1773599504045,-759.03525755,0.00047598,2]
[408429046,1773599504055,-200.94234751,0.00047598,2]
[408429047,1773599504064,-1526.55942095,0.00047598,2]
[408429048,1773599504073,-466.99164234,0.00047598,2]
[408429049,1773599504083,-407.40457413,0.00047598,2]
[408429050,1773599504092,-160.27630419,0.00047598,2]
[408429051,1773599504102,-353.250891,0.00047598,2]
[408429052,1773599504111,-249.0052738,0.00047598,3]
[408429053,1773599504121,-150.0,0.00047598,2]
[408429054,1773599504131,-500.0,0.00047598,120]
[408429055,1773599504141,-1006.5415195,0.00047598,120]
[408429056,1773599504150,-154912.74049686,0.00047598,30]
[408429057,1773599504160,-300231.387871,0.00047598,2]
[408429058,1773599504170,-19009.63043804,0.00047598,2]
[408429059,1773599504179,-50000.0,0.00047598,44]
[408429060,1773599504189,-50000.0,0.00047598,46]
[408429061,1773599504200,-58078.94809338,0.00047598,120]
[408429062,1773599504210,-177.0,0.00047598,30]
[408429063,1773599504220,-500.15092104,0.00047598,2]
[408429064,1773599504231,-10112.0438837,0.00047598,7]
[408429065,1773599504366,-8300.0,0.00047598,7]
[408429066,1773599504378,-10056.51430919,0.00047598,7]
[408429067,1773599504388,-32337.999998,0.00047598,30]
[408429068,1773599504397,-48678.63074869,0.00047598,30]
[408429069,1773599504407,-3517.69240145,0.00047598,30]
[408429070,1773599504416,-16570557.47964139,0.00047598,30]
[408429071,1773599504425,-5744.75603722,0.00047598,30]
[408429072,1773599504434,-272502.91248467,0.00047598,30]
[408429073,1773599504443,-218277.17981942,0.00047598,30]
[408429074,1773599504453,-484533.67655143,0.00047598,30]
[408429075,1773599504463,-7348.9742989,0.00047598,30]
[408429076,1773599504472,-38087.80553302,0.00047598,30]
[408429077,1773599504483,-17260.69443479,0.00047598,30]
[408429078,1773599504493,-260390.41635707,0.00047598,30]
[408429079,1773599504504,-12537.52673684,0.00047598,30]
[408429080,1773599504515,-9176.90418156,0.00047598,30]
[408429081,1773599504525,-57245.43723076,0.00047598,30]
[408429082,1773599504535,-3590.26069577,0.00047598,30]
[408429083,1773599504544,-42865.68797565,0.00047598,30]
[408429084,1773599504553,-42286.30998618,0.00047598,30]
[408429085,1773599504563,-1153629.75363773,0.00047598,30]
[408429086,1773599504572,-4055.93411815,0.00047598,30]
[408429087,1773599504581,-67238.47658884,0.00047598,30]
[408429088,1773599504590,-111588.37847758,0.00047598,30]
[408429089,1773599504599,-2014358.7559712,0.00047598,30]
[408429090,1773599504608,-690765.91654921,0.00047598,30]
[408429091,1773599504618,-26314.57429799,0.00047598,30]
[408429092,1773599504628,-34271.35933666,0.00047598,30]
[408429093,1773599504637,-8256.75411234,0.00047598,30]
[408429094,1773599504648,-207584.12808654,0.00047598,30]
[408429095,1773599504658,-57319.91508368,0.00047598,30]
[408429096,1773599504667,-390726.82974666,0.00047598,30]
[408429097,1773599504677,-105498.9975469,0.00047598,30]
[408429098,1773599504689,-5668.36879774,0.00047598,90]
[408429099,1773599504699,-17893.77562932,0.00047598,60]
[408429100,1773599504708,-4853.20717326,0.00047598,30]
[408429101,1773599504719,-109369.76933582,0.00047598,30]
[408429102,1773599504728,-1342.02091223,0.00047598,120]
[408429103,1773599504738,-15817.99813868,0.00047598,2]
[408429104,1773599504748,-1269.90274967,0.00047598,120]
[408429105,1773599504758,-179.22845357,0.00047598,30]
[408429106,1773599504767,-204.6728666,0.00047598,120]
[408429107,1773599504777,-286.62697386,0.00047598,60]
[408429108,1773599504788,-151.1374582,0.00047598,120]
[408429109,1773599504799,-428.0,0.00047598,120]
[408429110,1773599504809,-3000.0,0.00047598,120]
[408429111,1773599504819,-10000.0,0.00047598,120]
[408429112,1773599504828,-10000.0,0.00047598,120]
[408429113,1773599504837,-10000.0,0.00047598,120]
[408429114,1773599504847,-10000.0,0.00047598,120]
[408429115,1773599504856,-10000.0,0.00047598,120]
[408429116,1773599504865,-10000.0,0.00047598,120]
[408429117,1773599504874,-10000.0,0.00047598,120]
[408429118,1773599504884,-10000.0,0.00047598,120]
[408429119,1773599504893,-10000.0,0.00047598,120]
[408429120,1773599504903,-10000.0,0.00047598,120]
[408429121,1773599504912,-3771.11692616,0.00047598,120]
[408429122,1773599504927,-70309.0,0.00047598,30]
[408429123,1773599504936,-170.215051,0.00047598,90]
[408429124,1773599504947,-3596.45,0.00047598,30]
[408429125,1773599504957,-181.97906761,0.00047598,120]
[408429126,1773599504967,-235.62652798,0.00047598,120]
[408429127,1773599504976,-151.51776886,0.00047598,120]
[408429128,1773599504985,-4043.07715363,0.00047598,30]
[408429129,1773599504997,-486.98502583,0.00047598,30]
[408429130,1773599505007,-328.23932435,0.00047598,120]
[408429131,1773599505017,-352.46969247,0.00047598,120]
[408429132,1773599505026,-322.89627853,0.00047598,30]
[408429133,1773599505035,-2304.10891008,0.00047598,15]
[408429134,1773599505044,-619.96158144,0.00047598,120]
[408429135,1773599505053,-156.86073779,0.00047598,120]
[408429136,1773599505063,-770.6658605,0.00047598,120]